bitfinex/quotes_BTCUSD_20221001
["timestamp","ask_amount","ask_price","bid_price","bid_amount"]
[1664614639401,1.37636098,19348.0,19347.0,0.02450554]
[1664614639630,1.32527076,19348.0,19347.0,0.38266654]
[1664614639879,1.08573367,19348.0,19347.0,0.38266654]
[1664614640108,1.08573367,19348.0,19347.0,0.02450554]
[1664614640805,1.00573367,19348.0,19347.0,0.38266654]
[1664614641042,0.94855376,19348.0,19347.0,0.38266654]
[1664614641290,0.94855376,19348.0,19347.0,0.02450554]
[1664614641526,1.02855531,19348.0,19347.0,0.38266654]
[1664614641803,1.02855531,19348.0,19347.0,0.02450554]
[1664614642287,0.96773414,19348.0,19347.0,0.02450554]
[1664614642514,1.08573356,19348.0,19347.0,0.02450554]
[1664614642736,1.00573356,19348.0,19347.0,0.02450554]
[1664614642954,0.88773414,19348.0,19347.0,0.02450554]
[1664614643176,1.19370281,19348.0,19347.0,0.02450554]
[1664614643402,1.28060823,19348.0,19347.0,0.02450554]
[1664614643628,1.39170147,19348.0,19347.0,0.02450554]
[1664614644965,1.31170147,19348.0,19347.0,0.02450554]
[1664614645198,1.29507033,19348.0,19347.0,0.02450554]
[1664614645469,1.19370178,19348.0,19347.0,0.02450554]
[1664614645685,1.33452075,19348.0,19347.0,0.02450554]
[1664614645911,1.39170071,19348.0,19347.0,0.02450554]
[1664614646105,1.39170071,19348.0,19347.0,0.02442814]
[1664614646793,1.31170071,19348.0,19347.0,0.02442814]
[1664614647014,1.36170071,19348.0,19347.0,0.02442814]
[1664614647238,1.31170071,19348.0,19347.0,0.02442814]
[1664614647703,1.44170071,19348.0,19347.0,0.02442814]
[1664614648644,1.32370178,19348.0,19347.0,0.02442814]
[1664614648866,1.36170051,19348.0,19347.0,0.02442814]
[1664614649609,1.44070051,19348.0,19347.0,0.02442814]
[1664614649827,1.08473184,19348.0,19347.0,0.02442814]
[1664614650062,1.02755146,19348.0,19347.0,0.02442814]
[1664614650961,0.94855146,19348.0,19347.0,0.02442814]
[1664614651665,1.02855146,19348.0,19347.0,0.02442814]
[1664614652815,0.94855146,19348.0,19347.0,0.02442814]
[1664614653750,1.02755146,19348.0,19347.0,0.02442814]
[1664614654435,1.02755207,19348.0,19347.0,0.02442814]
[1664614654654,0.96673311,19348.0,19347.0,0.02442814]
[1664614654875,0.94855199,19348.0,19347.0,0.02442814]
[1664614655807,1.02755199,19348.0,19347.0,0.02442814]
[1664614656907,1.32018206,19348.0,19347.0,0.02442814]
[1664614657054,1.24118206,19348.0,19347.0,0.02442814]
[1664614657479,1.32018206,19348.0,19347.0,0.02442814]
[1664614658951,1.24118206,19348.0,19347.0,0.02442814]
[1664614659620,1.25355165,19348.0,19347.0,0.02442814]
[1664614659850,1.1521831,19348.0,19347.0,0.02442814]
[1664614660072,1.27018193,19348.0,19347.0,0.02442814]
[1664614660351,1.21300156,19348.0,19347.0,0.02442814]
[1664614660565,1.1521831,19348.0,19347.0,0.02442814]
[1664614660825,1.1231831,19348.0,19347.0,0.02442814]
[1664614661491,1.24118195,19348.0,19347.0,0.02442814]
[1664614661716,1.32018195,19348.0,19347.0,0.02442814]
[1664614662852,1.24118195,19348.0,19347.0,0.02442814]
[1664614663300,1.47486968,19348.0,19347.0,0.02442814]
[1664614663529,1.39377644,19348.0,19347.0,0.02442814]
[1664614663745,1.47277644,19348.0,19347.0,0.02442814]
[1664614664939,1.39377644,19348.0,19347.0,0.02442814]
[1664614665601,1.47277644,19348.0,19347.0,0.02442814]
[1664614666067,1.55386941,19348.0,19347.0,0.02442814]
[1664614666519,1.55386956,19348.0,19347.0,0.02442814]
[1664614666746,1.55386932,19348.0,19347.0,0.02442814]
[1664614666969,1.47486932,19348.0,19347.0,0.02442814]
[1664614667247,1.39377644,19348.0,19347.0,0.02442814]
[1664614667693,1.47277644,19348.0,19347.0,0.02442814]
[1664614668146,1.55386766,19348.0,19347.0,0.02442814]
[1664614668615,1.47277644,19348.0,19347.0,0.02442814]
[1664614668854,1.70377644,19348.0,19347.0,0.02442814]
[1664614669071,1.78486832,19348.0,19347.0,0.02442814]
[1664614669750,1.86386832,19348.0,19347.0,0.02434488]
[1664614669989,1.78277644,19348.0,19347.0,0.02434488]
[1664614670220,1.86386819,19348.0,19347.0,0.02434488]
[1664614671156,1.78486819,19348.0,19347.0,0.02434488]
[1664614671374,1.70377644,19348.0,19347.0,0.02434488]
[1664614671858,1.78277644,19348.0,19347.0,0.02434488]
[1664614673107,1.70377644,19348.0,19347.0,0.02434488]
[1664614673775,1.86386916,19348.0,19347.0,0.02434488]
[1664614673986,1.78277644,19348.0,19347.0,0.02434488]
[1664614674878,1.70377644,19348.0,19347.0,0.02434488]
[1664614675109,1.7848693,19348.0,19347.0,0.02434488]
[1664614675353,1.70377644,19348.0,19347.0,0.02434488]
[1664614675589,1.78487107,19348.0,19347.0,0.02434488]
[1664614675823,1.86387107,19348.0,19347.0,0.02434488]
[1664614676964,1.78487107,19348.0,19347.0,0.02434488]
[1664614677694,1.81387107,19348.0,19347.0,0.02434488]
[1664614678546,1.75669192,19348.0,19347.0,0.02434488]
[1664614678768,1.81387128,19348.0,19347.0,0.02434488]
[1664614678986,1.79724077,19348.0,19347.0,0.02434488]
[1664614679438,1.73487133,19348.0,19347.0,0.02434488]
[1664614679674,1.81387133,19348.0,19347.0,0.02434488]
[1664614679898,1.69587222,19348.0,19347.0,0.02434488]
[1664614680118,1.81387133,19348.0,19347.0,0.02434488]
[1664614680696,1.79724077,19348.0,19347.0,0.02434488]
[1664614680915,1.71824077,19348.0,19347.0,0.02434488]
[1664614681333,1.61687222,19348.0,19347.0,0.02434488]
[1664614681774,1.81387169,19348.0,19347.0,0.02434488]
[1664614682238,1.81335469,19348.0,19347.0,0.02434488]
[1664614682487,1.81335474,19348.0,19347.0,0.02434488]
[1664614682691,1.69535522,19348.0,19347.0,0.02434488]
[1664614682903,1.61635522,19348.0,19347.0,0.02434488]
[1664614683115,1.73435473,19348.0,19347.0,0.02434488]
[1664614683651,1.81335475,19348.0,19347.0,0.02434488]
[1664614683862,1.86335478,19348.0,19347.0,0.02434488]
[1664614684976,1.78435478,19348.0,19347.0,0.02434488]
[1664614685870,1.86335478,19348.0,19347.0,0.02434488]
[1664614686584,1.78226015,19348.0,19347.0,0.02434488]
[1664614686794,101.86335794,19348.0,19347.0,0.02434488]
[1664614687041,101.70326015,19348.0,19347.0,0.02434488]
[1664614687786,101.78226015,19348.0,19347.0,0.02434488]
[1664614689278,101.70326015,19348.0,19347.0,0.02434488]
[1664614689672,101.78226015,19348.0,19347.0,0.02434488]
[1664614691065,101.70326015,19348.0,19347.0,0.02434488]
[1664614691330,101.6018916,19348.0,19347.0,0.02434488]
[1664614691527,101.70326739,19348.0,19347.0,0.02434488]
[1664614691654,101.78226739,19348.0,19347.0,0.02434488]
[1664614692819,101.6808916,19348.0,19347.0,0.02434488]
[1664614693033,101.6018916,19348.0,19347.0,0.02434488]
[1664614693682,101.6808916,19348.0,19347.0,0.02434488]
[1664614694889,0.05,19343.0,19340.0,0.01]
[1664614695124,0.23251957,19341.0,19340.0,0.01]
[1664614695337,2.05220409,19341.0,19340.0,0.01]
[1664614695557,2.552272,19341.0,19340.0,0.01]
[1664614695768,2.6501647,19341.0,19340.0,0.01]
[1664614696211,2.68026418,19341.0,19340.0,0.01]
[1664614696664,2.57231283,19341.0,19340.0,0.01]
[1664614696887,2.6533519,19341.0,19340.0,0.01]
[1664614697116,2.69349143,19341.0,19340.0,0.01]
[1664614697336,3.53635324,19341.0,19340.0,0.01]
[1664614697600,3.59349086,19341.0,19340.0,0.01]
[1664614697817,3.64949078,19341.0,19340.0,0.01]
[1664614698036,3.59235125,19341.0,19340.0,0.01]
[1664614698252,3.5315726,19341.0,19340.0,0.01]
[1664614698693,3.54235089,19341.0,19340.0,0.01]
[1664614698930,3.4255726,19341.0,19340.0,0.01]
[1664614699369,3.9691726,19341.0,19340.0,0.01]
[1664614699588,3.99677801,19341.0,19340.0,0.01]
[1664614699814,4.05277801,19341.0,19340.0,0.01]
[1664614700513,4.04493229,19341.0,19340.0,0.01]
[1664614700971,3.98893229,19341.0,19340.0,0.01]
[1664614701204,3.9484345,19341.0,19340.0,0.01]
[1664614701428,2.5048345,19341.0,19340.0,0.01]
[1664614701636,3.01833502,19341.0,19340.0,0.01]
[1664614701862,3.07533502,19341.0,19340.0,0.01]
[1664614702769,2.53173502,19341.0,19340.0,0.01]
[1664614703097,2.47473502,19341.0,19340.0,0.01]
[1664614703335,4.85395078,19341.0,19340.0,0.01]
[1664614703758,5.45455078,19341.0,19340.0,0.01]
[1664614704121,5.48465026,19341.0,19340.0,0.01]
[1664614704792,5.69268659,19341.0,19340.0,0.01]
[1664614705173,5.63568659,19341.0,19340.0,0.01]
[1664614705842,3.34357031,19341.0,19340.0,0.01]
[1664614706556,6.12517982,19341.0,19340.0,0.01]
[1664614707038,6.70466042,19341.0,19340.0,0.01]
[1664614707279,6.15366042,19341.0,19340.0,0.01]
[1664614707505,5.91552461,19341.0,19340.0,0.01]
[1664614707760,5.85852461,19341.0,19340.0,0.01]
[1664614707980,5.91352461,19341.0,19340.0,0.01]
[1664614708623,5.88342513,19341.0,19340.0,0.01]
[1664614708861,5.91203069,19341.0,19340.0,0.01]
[1664614709087,5.85703069,19341.0,19340.0,0.01]
[1664614709853,5.91303069,19341.0,19340.0,0.01]
[1664614711089,5.85703069,19341.0,19340.0,0.01]
[1664614711762,5.91303069,19341.0,19340.0,0.01]
[1664614713107,6.37406669,19341.0,19340.0,0.01]
[1664614713984,3.29758794,19341.0,19340.0,0.01]
[1664614715101,3.24158794,19341.0,19340.0,0.01]
[1664614715714,2.72455194,19341.0,19340.0,0.01]
[1664614715935,2.78055194,19341.0,19340.0,0.01]
[1664614716152,3.09604112,19341.0,19340.0,0.01]
[1664614717116,3.04004112,19341.0,19340.0,0.01]
[1664614717563,5.44032594,19341.0,19340.0,0.01]
[1664614718127,5.5249315,19341.0,19340.0,0.01]
[1664614719234,5.4689315,19341.0,19340.0,0.00988114]
[1664614719843,5.5249315,19341.0,19340.0,0.00988114]
[1664614720317,5.09886686,19341.0,19340.0,0.00988114]
[1664614720532,5.5249315,19341.0,19340.0,0.00988114]
[1664614721188,5.4689315,19341.0,19340.0,0.00988114]
[1664614721947,5.5249315,19341.0,19340.0,0.00988114]
[1664614723165,5.4689315,19341.0,19340.0,0.00988114]
[1664614723813,5.5269315,19341.0,19340.0,0.00988114]
[1664614725109,5.04286686,19341.0,19340.0,0.00988114]
[1664614725970,5.5269315,19341.0,19340.0,0.00988114]
[1664614726433,5.10086686,19341.0,19340.0,0.00988114]
[1664614727090,5.04286686,19341.0,19340.0,0.00988114]
[1664614728014,5.5269315,19341.0,19340.0,0.00988114]
[1664614728460,5.10086686,19341.0,19340.0,0.00988114]
[1664614729113,5.04286686,19341.0,19340.0,0.00988114]
[1664614730099,5.5269315,19341.0,19340.0,0.00988114]
[1664614731206,5.4689315,19341.0,19340.0,0.00988114]
[1664614732094,5.5269315,19341.0,19340.0,0.00988114]
[1664614733098,5.4689315,19341.0,19340.0,0.00988114]
[1664614733827,5.56742929,19341.0,19340.0,0.00988114]
[1664614735166,5.4689315,19341.0,19340.0,0.00988114]
[1664614735871,5.62817598,19341.0,19340.0,0.00988114]
[1664614737177,5.57017598,19341.0,19340.0,0.00988114]
[1664614737419,5.52967819,19341.0,19340.0,0.00988114]
[1664614737636,5.61067378,19341.0,19340.0,0.00988114]
[1664614737971,5.66867378,19341.0,19340.0,0.00988114]
[1664614738191,5.54356764,19341.0,19340.0,0.00988114]
[1664614739093,5.48556764,19341.0,19340.0,0.00988114]
[1664614739996,5.54356764,19341.0,19340.0,0.00988114]
[1664614740632,5.117503,19341.0,19340.0,0.00988114]
[1664614740946,4.80201382,19341.0,19340.0,0.00981149]
[1664614741160,4.54349582,19341.0,19340.0,0.00981149]
[1664614741372,4.49349582,19341.0,19340.0,0.00981149]
[1664614741587,4.53689367,19341.0,19340.0,0.00981149]
[1664614741739,4.40763467,19341.0,19340.0,0.00981149]
[1664614741956,4.46563467,19341.0,19340.0,0.00981149]
[1664614742383,4.94862281,19341.0,19340.0,0.00981149]
[1664614742655,5.3232896,19341.0,19340.0,0.00981149]
[1664614742807,4.89722496,19341.0,19340.0,0.00981149]
[1664614742996,4.99862269,19341.0,19340.0,0.00981149]
[1664614743198,4.94062269,19341.0,19340.0,0.00981149]
[1664614743700,2.38312675,19341.0,19340.0,0.00981149]
[1664614743920,2.03825457,19341.0,19340.0,0.00981149]
[1664614744144,2.0382503,19341.0,19340.0,0.00981149]
[1664614744367,4.62267169,19341.0,19340.0,0.00981149]
[1664614744581,4.59156,19341.0,19340.0,0.00981149]
[1664614745283,4.53456,19341.0,19340.0,0.00981149]
[1664614745509,5.0109337,19341.0,19340.0,0.00981149]
[1664614745736,6.4327827,19341.0,19340.0,0.00981149]
[1664614745961,6.4827827,19341.0,19340.0,0.00981149]
[1664614747373,5.956409,19341.0,19340.0,0.00981149]
[1664614747587,5.906409,19341.0,19340.0,0.00981149]
[1664614747797,5.98752844,19341.0,19340.0,0.00981149]
[1664614748023,6.03752844,19341.0,19340.0,0.00981149]
[1664614749164,5.42752844,19341.0,19340.0,0.00981149]
[1664614749395,0.5794806,19341.0,19340.0,0.03766164]
[1664614749637,0.5794806,19341.0,19340.0,1.94877005]
[1664614749906,0.5794806,19341.0,19340.0,1.84966417]
[1664614750144,0.04055421,19344.0,19340.0,1.84966417]
[1664614750386,0.10138863,19345.0,19343.0,0.09989365]
[1664614750620,0.04055421,19345.0,19344.0,0.45805465]
[1664614751075,0.04055421,19345.0,19344.0,0.09989365]
[1664614751518,0.04055421,19347.0,19344.0,0.09989365]
[1664614751737,0.04055421,19347.0,19346.0,0.09989365]
[1664614752919,0.55228565,19347.0,19346.0,0.09989365]
[1664614753144,1.03857673,19347.0,19346.0,0.09989365]
[1664614753360,1.33857673,19347.0,19345.0,0.129304]
[1664614753594,0.81173144,19346.0,19345.0,0.129304]
[1664614759525,0.51173144,19346.0,19345.0,0.129304]
[1664614759912,0.81173144,19346.0,19345.0,0.129304]
[1664614760203,0.51173144,19346.0,19345.0,0.129304]
[1664614764234,0.51173144,19346.0,19345.0,0.1551655]
[1664614764455,0.51173144,19346.0,19345.0,0.15509881]
[1664614765456,0.51173144,19346.0,19345.0,0.12923731]
[1664614774382,0.81173144,19346.0,19345.0,0.12923731]
[1664614774605,0.51173144,19346.0,19345.0,0.12923731]
[1664614775275,0.81173144,19346.0,19345.0,0.12923731]
[1664614776232,0.51173144,19346.0,19345.0,0.12923731]
[1664614779149,0.81173144,19346.0,19345.0,0.12923731]
[1664614780764,0.51173144,19346.0,19345.0,0.12923731]
[1664614780988,0.81173144,19346.0,19345.0,0.12923731]
[1664614783181,0.51173144,19346.0,19345.0,0.12923731]
[1664614786400,0.51173144,19346.0,19345.0,0.12916093]
[1664614787858,0.129219,19347.0,19345.0,0.15500812]
[1664614788086,0.129141,19348.0,19345.0,0.28431212]
[1664614788087,0.516784,19348.0,19345.0,0.28431212]
[1664614788314,1.02851544,19348.0,19345.0,0.41361812]
[1664614789650,1.02851544,19348.0,19347.0,0.09989365]
[1664614789901,0.89937344,19348.0,19347.0,0.09989365]
[1664614790122,0.89937344,19348.0,19345.0,0.38777093]
[1664614790346,1.02851644,19348.0,19345.0,0.38777093]
[1664614790567,1.02851844,19348.0,19345.0,0.38777093]
[1664614790787,1.02851844,19348.0,19347.0,0.09989365]
[1664614791008,0.89937544,19348.0,19347.0,0.09989365]
[1664614792197,0.89937544,19348.0,19346.0,0.258596]
[1664614793070,1.00076407,19348.0,19346.0,0.258596]
[1664614793529,1.00076407,19348.0,19347.0,0.09989365]
[1664614794206,1.30076407,19348.0,19347.0,0.09989365]
[1664614794428,1.30076407,19348.0,19346.0,0.258596]
[1664614796425,1.30076407,19348.0,19347.0,0.09989365]
[1664614796873,1.30076407,19348.0,19346.0,0.258596]
[1664614798083,1.30076407,19348.0,19347.0,0.09989365]
[1664614798521,1.30076407,19348.0,19346.0,0.258596]
[1664614800352,1.31970463,19348.0,19347.0,0.09989365]
[1664614800565,1.01970463,19348.0,19347.0,0.09989365]
[1664614800777,1.01970463,19348.0,19346.0,0.258596]
[1664614802919,0.95887021,19348.0,19347.0,0.09989365]
[1664614803376,1.01970463,19348.0,19346.0,0.258596]
[1664614804057,0.95887021,19348.0,19347.0,0.09989365]
[1664614804300,0.95887021,19348.0,19347.0,0.12674271]
[1664614804511,0.82965421,19348.0,19347.0,0.02684906]
[1664614805641,1.12965421,19348.0,19347.0,0.02684906]
[1664614806065,0.87122621,19348.0,19347.0,0.02684906]
[1664614806514,0.57122621,19348.0,19347.0,0.02684906]
[1664614806727,0.530672,19348.0,19347.0,0.02684906]
[1664614807169,0.01894056,19348.0,19347.0,0.93662916]
[1664614807382,0.10138863,19353.0,19350.0,0.09989365]
[1664614807549,0.61312007,19353.0,19352.0,0.09989365]
[1664614807785,0.55228565,19353.0,19352.0,0.73079762]
[1664614808216,0.11455421,19353.0,19352.0,0.74879762]
[1664614808430,0.11455421,19353.0,19352.0,0.54395829]
[1664614808431,0.074,19353.0,19352.0,0.54395829]
[1664614808774,0.074,19353.0,19352.0,0.64820916]
[1664614809348,0.074,19353.0,19352.0,0.67054002]
[1664614809577,0.10138863,19354.0,19352.0,0.65254002]
[1664614809798,0.55228565,19354.0,19353.0,0.09989365]
[1664614810057,0.51173144,19354.0,19353.0,0.09989365]
[1664614810388,0.51173144,19354.0,19353.0,0.52595829]
[1664614810389,0.58373144,19354.0,19353.0,0.52595829]
[1664614810714,0.58373144,19354.0,19353.0,0.09989365]
[1664614810937,0.58373144,19354.0,19353.0,0.52595829]
[1664614811626,0.51173144,19354.0,19353.0,0.09989365]
[1664614812309,0.59173144,19354.0,19353.0,0.09989365]
[1664614812536,0.59173144,19354.0,19352.0,0.28084686]
[1664614812772,0.59173144,19354.0,19353.0,0.09989365]
[1664614813709,0.51173144,19354.0,19353.0,0.09989365]
[1664614813955,0.51173144,19354.0,19353.0,0.10862105]
[1664614814465,0.59173144,19354.0,19353.0,0.10862105]
[1664614814690,0.59173144,19354.0,19353.0,0.13095191]
[1664614814914,0.59173144,19354.0,19353.0,0.13966851]
[1664614815686,0.51173144,19354.0,19353.0,0.13966851]
[1664614816126,0.51173144,19354.0,19353.0,0.03977486]
[1664614816298,0.59173144,19354.0,19353.0,0.03977486]
[1664614816958,0.59173144,19354.0,19353.0,0.04849355]
[1664614817625,0.51173144,19354.0,19353.0,0.04849355]
[1664614818344,0.59173144,19354.0,19353.0,0.04849355]
[1664614819686,0.51173144,19354.0,19353.0,0.04849355]
[1664614820274,0.59173144,19354.0,19353.0,0.04849355]
[1664614821761,0.51173144,19354.0,19353.0,0.04849355]
[1664614822322,0.59173144,19354.0,19353.0,0.04849355]
[1664614823000,0.89173144,19354.0,19353.0,0.04849355]
[1664614823706,0.81173144,19354.0,19353.0,0.04849355]
[1664614824381,0.89173144,19354.0,19353.0,0.04849355]
[1664614825616,0.81173144,19354.0,19353.0,0.04849355]
[1664614825816,0.51173144,19354.0,19353.0,0.04849355]
[1664614825964,0.81173144,19354.0,19353.0,0.04849355]
[1664614826404,0.89173144,19354.0,19353.0,0.04849355]
[1664614827602,0.81173144,19354.0,19353.0,0.04849355]
[1664614828395,0.89173144,19354.0,19353.0,0.04849355]
[1664614829743,0.81173144,19354.0,19353.0,0.04849355]
[1664614830487,0.89173144,19354.0,19353.0,0.04849355]
[1664614830709,0.59173144,19354.0,19353.0,0.04849355]
[1664614831584,0.51173144,19354.0,19353.0,0.04849355]
[1664614832483,0.59173144,19354.0,19353.0,0.04849355]
[1664614833720,0.51173144,19354.0,19353.0,0.04849355]
[1664614834376,0.59173144,19354.0,19353.0,0.04849355]
[1664614835713,0.51173144,19354.0,19353.0,0.04849355]
[1664614836211,3.26794133,19354.0,19353.0,0.04849355]
[1664614836432,3.34794133,19354.0,19353.0,0.04849355]
[1664614837767,3.26794133,19354.0,19353.0,0.04849355]
[1664614838227,0.129167,19355.0,19353.0,0.47445319]
[1664614838460,0.08,19354.0,19353.0,0.43613555]
[1664614838686,0.08,19354.0,19353.0,0.30688655]
[1664614839826,4.53501982,19355.0,19353.0,0.30688655]
[1664614840047,4.02252182,19355.0,19353.0,0.30688655]
[1664614840272,3.63501982,19355.0,19353.0,0.30688655]
[1664614840493,4.61501982,19355.0,19353.0,0.30688655]
[1664614841215,5.00252182,19355.0,19353.0,0.30688655]
[1664614841679,4.92252182,19355.0,19353.0,0.30688655]
[1664614842135,4.96307603,19355.0,19353.0,0.30688655]
[1664614842354,0.00264825,19354.0,19353.0,0.30688655]
[1664614844518,0.08264825,19354.0,19353.0,0.30688655]
[1664614845628,0.00264825,19354.0,19353.0,0.30688655]
[1664614846567,0.08264825,19354.0,19353.0,0.30688655]
[1664614847730,0.00264825,19354.0,19353.0,0.04838855]
[1664614848516,0.00984724,19354.0,19353.0,0.04838855]
[1664614849026,0.05040145,19354.0,19353.0,0.04838855]
[1664614849718,0.04055421,19354.0,19353.0,0.04838855]
[1664614850489,0.04055421,19354.0,19353.0,0.12138855]
[1664614851667,0.04055421,19354.0,19353.0,0.04838855]
[1664614851908,0.08111944,19354.0,19353.0,0.04838855]
[1664614852138,0.18251717,19354.0,19353.0,0.04838855]
[1664614852355,0.18251717,19354.0,19353.0,0.12138855]
[1664614852595,0.48251717,19354.0,19353.0,0.12138855]
[1664614853667,0.48251717,19354.0,19353.0,0.04838855]
[1664614854607,0.48251717,19354.0,19353.0,0.11338855]
[1664614855692,0.48251717,19354.0,19353.0,0.04838855]
[1664614855939,0.18251717,19354.0,19353.0,0.04838855]
[1664614856671,0.18251717,19354.0,19353.0,0.11338855]
[1664614857276,0.14192373,19354.0,19353.0,0.11338855]
[1664614857718,0.14192373,19354.0,19353.0,0.04838855]
[1664614858531,0.14192373,19354.0,19353.0,0.11338855]
[1664614859649,0.14192373,19354.0,19353.0,0.04838855]
[1664614860516,0.14192373,19354.0,19353.0,0.11338855]
[1664614861640,0.18251717,19354.0,19353.0,0.11338855]
[1664614861892,0.18251717,19354.0,19353.0,0.04838855]
[1664614862560,0.18251717,19354.0,19353.0,0.11338855]
[1664614863003,0.08111944,19354.0,19353.0,0.11338855]
[1664614863219,0.18251717,19354.0,19353.0,0.11338855]
[1664614863736,0.18251717,19354.0,19353.0,0.04838855]
[1664614864678,0.18251717,19354.0,19353.0,0.12138855]
[1664614865479,0.40139773,19354.0,19353.0,0.12138855]
[1664614865714,0.18247213,19354.0,19353.0,0.12138855]
[1664614865938,0.18247213,19354.0,19353.0,0.04838855]
[1664614865939,0.0810744,19354.0,19353.0,0.04838855]
[1664614866157,0.18247213,19354.0,19353.0,0.04838855]
[1664614866367,0.48247213,19354.0,19353.0,0.04838855]
[1664614866585,0.48247213,19354.0,19353.0,0.12138855]
[1664614867883,0.48247213,19354.0,19353.0,0.04838855]
[1664614868034,0.18247213,19354.0,19353.0,0.04838855]
[1664614868466,0.48247213,19354.0,19353.0,0.12138855]
[1664614868682,0.40139773,19354.0,19353.0,0.12138855]
[1664614868902,0.48247312,19354.0,19353.0,0.12138855]
[1664614869327,0.40139773,19354.0,19353.0,0.12138855]
[1664614869755,0.40139773,19354.0,19353.0,0.04838855]
[1664614870174,0.48247283,19354.0,19353.0,0.04838855]
[1664614870535,0.48247283,19354.0,19353.0,0.12138855]
[1664614870750,0.40139773,19354.0,19353.0,0.12138855]
[1664614870972,0.48247294,19354.0,19353.0,0.12138855]
[1664614871391,0.48247263,19354.0,19353.0,0.12138855]
[1664614871769,0.48247263,19354.0,19353.0,0.04838855]
[1664614871988,0.40139773,19354.0,19353.0,0.04838855]
[1664614872207,0.10139773,19354.0,19353.0,0.04838855]
[1664614872427,0.18247168,19354.0,19353.0,0.04838855]
[1664614872655,0.18247168,19354.0,19353.0,0.12127057]
[1664614872656,0.48247168,19354.0,19353.0,0.12127057]
[1664614874180,0.48247168,19354.0,19353.0,0.04827057]
[1664614874616,0.48247168,19354.0,19353.0,0.12127057]
[1664614875862,0.48247168,19354.0,19353.0,0.04827057]
[1664614876771,0.48247168,19354.0,19353.0,0.12127057]
[1664614877911,0.48247168,19354.0,19353.0,0.04827057]
[1664614878598,0.48247168,19354.0,19353.0,0.11327057]
[1664614879779,0.38107395,19354.0,19353.0,0.11327057]
[1664614879982,0.44187819,19354.0,19353.0,0.04827057]
[1664614880724,0.48247168,19354.0,19353.0,0.11327057]
[1664614881614,0.38107395,19354.0,19353.0,0.11327057]
[1664614881853,0.48247168,19354.0,19353.0,0.04827057]
[1664614882756,0.48247168,19354.0,19353.0,0.11327057]
[1664614883867,0.14187834,19354.0,19353.0,0.04827057]
[1664614884675,0.14187834,19354.0,19353.0,0.12127057]
[1664614885694,0.14187834,19354.0,19353.0,0.11541557]
[1664614885920,0.14187834,19354.0,19353.0,0.04241557]
[1664614886615,0.14187834,19354.0,19353.0,0.11541557]
[1664614887970,0.14187834,19354.0,19353.0,0.04241557]
[1664614888798,0.14187834,19354.0,19353.0,0.11541557]
[1664614889887,0.14187834,19354.0,19353.0,0.04241557]
[1664614890670,0.14187834,19354.0,19353.0,0.11541557]
[1664614891800,0.14187834,19354.0,19353.0,0.04241557]
[1664614892660,0.14187834,19354.0,19353.0,0.11541557]
[1664614892856,0.06080439,19354.0,19353.0,0.11541557]
[1664614893300,0.1013388,19354.0,19353.0,0.11541557]
[1664614893994,0.1013388,19354.0,19353.0,0.04241557]
[1664614894651,0.1013388,19354.0,19353.0,0.11541557]
[1664614894800,0.06080439,19354.0,19353.0,0.11541557]
[1664614895020,0.10133791,19354.0,19353.0,0.11541557]
[1664614895981,0.10133791,19354.0,19353.0,0.04241557]
[1664614896650,0.10133791,19354.0,19353.0,0.11541557]
[1664614897356,0.06080439,19354.0,19353.0,0.11541557]
[1664614897593,0.10133769,19354.0,19353.0,0.11541557]
[1664614897822,0.06080439,19354.0,19353.0,0.11541557]
[1664614898020,0.10133772,19354.0,19353.0,0.04241557]
[1664614898599,0.06080439,19354.0,19353.0,0.11541557]
[1664614899316,0.10133751,19354.0,19353.0,0.11541557]
[1664614899651,0.14187834,19354.0,19353.0,0.11541557]
[1664614899873,0.06080439,19354.0,19353.0,0.04241557]
[1664614900101,0.10133742,19354.0,19353.0,0.04241557]
[1664614900740,0.10133742,19354.0,19353.0,0.11541557]
[1664614901956,0.10133742,19354.0,19353.0,0.04241557]
[1664614902657,0.10133742,19354.0,19353.0,0.11541557]
[1664614904051,0.10133742,19354.0,19353.0,0.04241557]
[1664614904688,0.10133742,19354.0,19353.0,0.11541557]
[1664614905884,0.10133742,19354.0,19353.0,0.04241557]
[1664614906756,0.10133742,19354.0,19353.0,0.11541557]
[1664614906903,0.04053303,19354.0,19353.0,0.54005497]
[1664614907131,0.04053303,19354.0,19353.0,0.11541557]
[1664614907946,0.04053303,19354.0,19353.0,0.46705497]
[1664614908158,0.04053303,19354.0,19353.0,0.04241557]
[1664614908712,0.04053303,19354.0,19353.0,0.11541557]
[1664614909175,1.00057086,19355.0,19353.0,0.54005497]
[1664614909348,1.00057086,19355.0,19353.0,0.50316557]
[1664614909558,1.00057086,19355.0,19354.0,0.09989365]
[1664614910222,1.00057086,19355.0,19354.0,0.12211054]
[1664614910674,1.00057086,19355.0,19354.0,0.20111054]
[1664614911028,0.96003783,19355.0,19354.0,0.20111054]
[1664614911257,1.00056504,19355.0,19354.0,0.20111054]
[1664614911947,1.00056509,19355.0,19354.0,0.12211054]
[1664614912159,0.96003783,19355.0,19354.0,0.12211054]
[1664614912582,1.04111178,19355.0,19354.0,0.12211054]
[1664614912792,0.96003783,19355.0,19354.0,0.20111054]
[1664614913011,1.04111178,19355.0,19354.0,0.20111054]
[1664614913479,0.96003783,19355.0,19354.0,0.20111054]
[1664614913696,1.34111178,19355.0,19354.0,0.20111054]
[1664614913826,1.04111178,19355.0,19354.0,0.20111054]
[1664614914038,1.04111178,19355.0,19354.0,0.12211054]
[1664614914698,1.04111178,19355.0,19354.0,0.20111054]
[1664614915977,1.04111178,19355.0,19354.0,0.12211054]
[1664614916637,1.04111178,19355.0,19354.0,0.10133086]
[1664614916902,1.04109975,19355.0,19354.0,0.10133086]
[1664614918178,1.04109975,19355.0,19354.0,0.02233086]
[1664614918698,1.04109975,19355.0,19354.0,0.10133086]
[1664614919684,0.9600258,19355.0,19354.0,0.10133086]
[1664614919912,1.04109975,19355.0,19354.0,0.02233086]
[1664614920757,1.04109975,19355.0,19354.0,0.10133086]
[1664614921975,1.04109975,19355.0,19354.0,0.02233086]
[1664614922837,1.04109975,19355.0,19354.0,0.10133086]
[1664614923042,0.9600258,19355.0,19354.0,0.10133086]
[1664614923385,1.04109975,19355.0,19354.0,0.10133086]
[1664614923811,1.00055422,19355.0,19354.0,0.10133086]
[1664614924146,1.00055422,19355.0,19354.0,0.02233086]
[1664614924641,0.95728968,19356.0,19354.0,0.02233086]
[1664614924642,0.38827609,19359.0,19356.0,0.38367361]
[1664614924886,0.05266,19359.0,19358.0,0.09977968]
[1664614925214,0.05266,19359.0,19358.0,0.52421868]
[1664614925445,0.15397999,19359.0,19358.0,0.72905801]
[1664614925675,0.05266,19359.0,19358.0,0.54654954]
[1664614925902,0.05266,19359.0,19358.0,0.18838854]
[1664614926124,0.05266,19359.0,19358.0,0.54654954]
[1664614926782,0.05266,19359.0,19358.0,0.55854954]
[1664614927503,0.001,19359.0,19358.0,0.55854954]
[1664614928294,0.001,19359.0,19358.0,0.54654954]